fUSD/lending_fUSD_20250214
["ID","MTS","AMOUNT","RATE_DAILY","PERIOD"]
[353118335,1739566277311,-5616.87,0.00013945,2]
[353118336,1739566277321,-500.0,0.00013945,2]
[353118337,1739566277331,-1726.03,0.00013945,2]
[353118338,1739566277343,-3193.42,0.00013945,2]
[353118339,1739566277353,-2562.68,0.00013945,2]
[353118340,1739566277363,-2524.45,0.00013945,2]
[353118341,1739566277374,-3694.54,0.00013945,2]
[353118342,1739566277386,-500.0,0.00013945,2]
[353118343,1739566277396,-500.0,0.00013945,2]
[353118344,1739566277407,-2033.18,0.00013945,2]
[353118345,1739566277417,-550.44,0.00013945,2]
[353118346,1739566277427,-500.0,0.00013945,2]
[353118347,1739566277438,-2191.43,0.00013945,2]
[353118348,1739566277448,-645.64,0.00013945,2]
[353118349,1739566277466,-500.0,0.00013945,2]
[353118350,1739566277482,-500.0,0.00013945,2]
[353118351,1739566277494,-2232.76,0.00013945,2]
[353118352,1739566277506,-643.31,0.00013945,2]
[353118353,1739566277519,-539.61,0.00013945,2]
[353118354,1739566277532,-1959.93,0.00013945,2]
[353118355,1739566277544,-607.81,0.00013945,2]
[353118356,1739566277555,-500.0,0.00013945,2]
[353118357,1739566277566,-1505.1,0.00013945,2]
[353118358,1739566277577,-8241.8,0.00013945,2]
[353118359,1739566277588,-1325.07,0.00013945,2]
[353118360,1739566277599,-500.0,0.00013945,2]
[353118361,1739566277611,-886.49,0.00013945,2]
[353118362,1739566277622,-1367.66,0.00013945,2]
[353118363,1739566277633,-500.0,0.00013945,2]
[353118364,1739566277644,-731.34,0.00013945,2]
[353118365,1739566277655,-355.43558889,0.00013945,2]
[353118366,1739566277666,-217.85214529,0.00013945,2]
[353118367,1739566277677,-796.57,0.00013945,2]
[353118368,1739566277687,-500.0,0.00013945,2]
[353118369,1739566277699,-500.0,0.00013945,2]
[353118370,1739566277710,-719.16,0.00013945,2]
[353118371,1739566277721,-660.92,0.00013945,2]
[353118372,1739566277733,-2622.2,0.00013945,2]
[353118373,1739566277743,-899.83,0.00013945,2]
[353118374,1739566277754,-500.0,0.00013945,2]
[353118375,1739566277764,-3674.69,0.00013945,2]
[353118376,1739566277775,-2330.47,0.00013945,2]
[353118377,1739566277785,-1508.59,0.00013945,2]
[353118378,1739566277796,-860.46,0.00013945,2]
[353118379,1739566277807,-4851.48,0.00013945,2]
[353118380,1739566277818,-500.0,0.00013945,2]
[353118381,1739566277829,-3084.92,0.00013945,2]
[353118382,1739566277840,-500.0,0.00013945,2]
[353118383,1739566277853,-667.69,0.00013945,2]
[353118384,1739566277864,-1520.32,0.00013945,2]
[353118385,1739566277874,-569.14,0.00013945,2]
[353118386,1739566277885,-500.0,0.00013945,2]
[353118387,1739566277895,-883.89,0.00013945,2]
[353118388,1739566277906,-1295.15,0.00013945,2]
[353118389,1739566277916,-1976.66,0.00013945,2]
[353118390,1739566277927,-500.0,0.00013945,2]
[353118391,1739566277938,-1194.78,0.00013945,2]
[353118392,1739566277950,-1135.37,0.00013945,2]
[353118393,1739566277969,-500.0,0.00013945,2]
[353118394,1739566278341,-3133.2,0.00013945,2]
[353118395,1739566278357,-2227.17,0.00013945,2]
[353118396,1739566278369,-500.0,0.00013945,2]
[353118397,1739566278379,-500.0,0.00013945,2]
[353118398,1739566278389,-1929.53,0.00013945,2]
[353118399,1739566278399,-802.32,0.00013945,2]
[353118400,1739566278410,-519.05,0.00013945,2]
[353118401,1739566278420,-500.0,0.00013945,2]
[353118402,1739566278432,-1861.87,0.00013945,2]
[353118403,1739566278442,-1248.93,0.00013945,2]
[353118404,1739566278453,-688.14,0.00013945,2]
[353118405,1739566278463,-500.0,0.00013945,2]
[353118406,1739566278473,-500.0,0.00013945,2]
[353118407,1739566278484,-662.93,0.00013945,2]
[353118408,1739566278494,-684.97,0.00013945,2]
[353118409,1739566278504,-517.09,0.00013945,2]
[353118410,1739566278515,-500.0,0.00013945,2]
[353118411,1739566278524,-1152.88,0.00013945,2]
[353118412,1739566278535,-1705.16,0.00013945,2]
[353118413,1739566278545,-500.0,0.00013945,2]
[353118414,1739566278555,-1236.6,0.00013945,2]
[353118415,1739566278565,-4024.19,0.00013945,2]
[353118416,1739566278575,-727.92,0.00013945,2]
[353118417,1739566278585,-1661.4,0.00013945,2]
[353118418,1739566278596,-150.0,0.00013949,2]
[353118419,1739566278605,-150.0,0.00013953,2]
[353118420,1739566278616,-150.0,0.00013996,2]
[353118421,1739566278627,-6657.76765517,0.00014,2]
[353118422,1739566278637,-621.67,0.00014026,2]
[353118423,1739566278648,-621.67,0.00014026,2]
[353118424,1739566278658,-6128.58,0.00014026,2]
[353118425,1739566278668,-6128.58,0.00014026,2]
[353118426,1739566278679,-874.968359,0.00014027,2]
[353118427,1739566278689,-851.952662,0.00014027,2]
[353118428,1739566278699,-500.0,0.00014027,2]
[353118429,1739566278709,-500.0,0.00014027,2]
[353118430,1739566278720,-500.0,0.00014027,2]
[353118431,1739566278731,-500.0,0.00014027,2]
[353118432,1739566278741,-500.0,0.00014027,2]
[353118433,1739566278752,-500.0,0.00014027,2]
[353118434,1739566278763,-500.0,0.00014027,2]
[353118435,1739566278774,-500.0,0.00014027,2]
[353118436,1739566278785,-500.0,0.00014027,2]
[353118437,1739566278795,-536.18,0.00014027,2]
[353118438,1739566278807,-500.0,0.00014027,2]
[353118439,1739566278817,-500.0,0.00014027,2]
[353118440,1739566278827,-500.0,0.00014027,2]
[353118441,1739566278838,-500.0,0.00014027,2]
[353118442,1739566278848,-503.69,0.00014027,2]
[353118443,1739566278858,-500.0,0.00014027,2]
[353118444,1739566278872,-500.0,0.00014027,2]
[353118445,1739566278882,-500.0,0.00014027,2]
[353118446,1739566278893,-500.0,0.00014027,2]
[353118447,1739566278903,-500.0,0.00014027,2]
[353118448,1739566278913,-506.51,0.00014027,2]
[353118449,1739566278923,-500.0,0.00014027,2]
[353118450,1739566278933,-500.0,0.00014027,2]
[353118451,1739566278943,-500.0,0.00014027,2]
[353118452,1739566278953,-500.0,0.00014027,2]
[353118453,1739566278963,-500.0,0.00014027,2]
[353118454,1739566278973,-558.31,0.00014027,2]
[353118455,1739566278983,-500.0,0.00014027,2]
[353118456,1739566278994,-500.0,0.00014027,2]
[353118457,1739566279004,-519.27,0.00014027,2]
[353118458,1739566279014,-500.0,0.00014027,2]
[353118459,1739566279024,-500.0,0.00014027,2]
[353118460,1739566279034,-500.0,0.00014027,2]
[353118461,1739566279044,-500.0,0.00014027,2]
[353118462,1739566279054,-1200.0,0.00014027,2]
[353118463,1739566279067,-512.74,0.00014027,2]
[353118464,1739566279078,-500.0,0.00014027,2]
[353118465,1739566279089,-757.95,0.00014027,2]
[353118466,1739566279100,-500.0,0.00014027,2]
[353118467,1739566279111,-565.76,0.00014027,2]
[353118468,1739566279123,-500.0,0.00014027,2]
[353118469,1739566279133,-511.05199841,0.00014027,2]
[353118470,1739566279144,-500.0,0.00014027,2]
[353118471,1739566279155,-500.0,0.00014027,2]
[353118472,1739566279165,-500.0,0.00014027,2]
[353118473,1739566279175,-1107.64,0.00014027,2]
[353118474,1739566279186,-500.0,0.00014027,2]
[353118475,1739566279201,-500.0,0.00014027,2]
[353118476,1739566279211,-500.0,0.00014027,2]
[353118477,1739566279221,-500.0,0.00014027,2]
[353118478,1739566279232,-161.74711926,0.00014027,2]
[353118479,1739566279243,-500.0,0.00014027,2]
[353118480,1739566279253,-536.38,0.00014027,2]
[353118481,1739566279263,-500.0,0.00014027,2]
[353118482,1739566279273,-326.94,0.00014027,2]
[353118483,1739566279284,-413.74586788,0.00014027,2]
[353118484,1739566279294,-617.81,0.00014027,2]
[353118485,1739566279304,-500.0,0.00014027,2]
[353118486,1739566279316,-587.28,0.00014027,2]
[353118487,1739566279327,-500.0,0.00014027,2]
[353118488,1739566279337,-750.15,0.00014027,2]
[353118489,1739566279347,-500.0,0.00014027,2]
[353118490,1739566279357,-2392.8,0.00014027,2]
[353118491,1739566279368,-591.54,0.00014027,2]
[353118492,1739566279379,-500.0,0.00014027,2]
[353118493,1739566279389,-500.0,0.00014027,2]
[353118494,1739566279399,-500.0,0.00014027,2]
[353118495,1739566279409,-583.03,0.00014027,2]
[353118496,1739566279419,-1274.03,0.00014027,2]
[353118497,1739566279430,-500.0,0.00014027,2]
[353118498,1739566279440,-500.0,0.00014027,2]
[353118499,1739566279451,-500.0,0.00014027,2]
[353118500,1739566279461,-800.51,0.00014027,2]
[353118501,1739566279472,-1788.5,0.00014027,2]
[353118502,1739566279482,-500.0,0.00014027,2]
[353118503,1739566279493,-500.0,0.00014027,2]
[353118504,1739566279503,-500.0,0.00014027,2]
[353118505,1739566279513,-1330.5,0.00014027,2]
[353118506,1739566279536,-500.0,0.00014027,2]
[353118507,1739566279548,-500.0,0.00014027,2]
[353118508,1739566279560,-500.0,0.00014027,2]
[353118509,1739566279572,-740.69,0.00014027,2]
[353118510,1739566279583,-500.0,0.00014027,2]
[353118511,1739566279594,-1124.22,0.00014027,2]
[353118512,1739566279605,-500.0,0.00014027,2]
[353118513,1739566279616,-500.0,0.00014027,2]
[353118514,1739566279627,-500.0,0.00014027,2]
[353118515,1739566279637,-500.0,0.00014027,2]
[353118516,1739566279649,-569.68,0.00014027,2]
[353118517,1739566279660,-500.0,0.00014027,2]
[353118518,1739566279671,-500.0,0.00014027,2]
[353118519,1739566279682,-500.0,0.00014027,2]
[353118520,1739566279693,-783.23,0.00014027,2]
[353118521,1739566279704,-547.623635,0.00014027,2]
[353118522,1739566279715,-1019.53,0.00014027,2]
[353118523,1739566279725,-1273.67,0.00014027,2]
[353118524,1739566279736,-500.0,0.00014027,2]
[353118525,1739566279746,-719.23,0.00014027,2]
[353118526,1739566279757,-1340.4,0.00014027,2]
[353118527,1739566279767,-500.0,0.00014027,2]
[353118528,1739566279779,-154.64714,0.00014027,2]
[353118529,1739566279789,-180.848458,0.00014027,2]
[353118530,1739566279800,-912.68,0.00014027,2]
[353118531,1739566279811,-892.96,0.00014027,2]
[353118532,1739566279821,-500.0,0.00014027,2]
[353118533,1739566279832,-500.0,0.00014027,2]
[353118534,1739566279842,-1331.32,0.00014027,2]
[353118535,1739566279852,-564.14,0.00014027,2]
[353118536,1739566279862,-558.34,0.00014027,2]
[353118537,1739566279874,-500.0,0.00014027,2]
[353118538,1739566279884,-500.0,0.00014027,2]
[353118539,1739566279895,-500.0,0.00014027,2]
[353118540,1739566279905,-513.62,0.00014027,2]
[353118541,1739566279915,-500.0,0.00014027,2]
[353118542,1739566279926,-678.74,0.00014027,2]
[353118543,1739566279936,-583.73,0.00014027,2]
[353118544,1739566279947,-1406.71,0.00014027,2]
[353118545,1739566279957,-500.0,0.00014027,2]
[353118546,1739566279966,-964.12,0.00014027,2]
[353118547,1739566279976,-793.22,0.00014027,2]
[353118548,1739566279986,-500.0,0.00014027,2]
[353118549,1739566279995,-1085.56,0.00014027,2]
[353118550,1739566280005,-500.0,0.00014027,2]
[353118551,1739566280020,-541.36,0.00014027,2]
[353118552,1739566280031,-667.26,0.00014027,2]
[353118553,1739566280041,-500.0,0.00014027,2]
[353118554,1739566280051,-673.36,0.00014027,2]
[353118555,1739566280061,-500.0,0.00014027,2]
[353118556,1739566280072,-1082.27,0.00014027,2]
[353118557,1739566280082,-500.0,0.00014027,2]
[353118558,1739566280092,-500.0,0.00014027,2]
[353118559,1739566280103,-533.8,0.00014027,2]
[353118560,1739566280114,-500.0,0.00014027,2]
[353118561,1739566280124,-735.54,0.00014027,2]
[353118562,1739566280135,-669.31,0.00014027,2]
[353118563,1739566280146,-500.0,0.00014027,2]
[353118564,1739566280156,-500.0,0.00014027,2]
[353118565,1739566280167,-500.0,0.00014027,2]
[353118566,1739566280178,-883.81,0.00014027,2]
[353118567,1739566280188,-500.0,0.00014027,2]
[353118568,1739566280200,-500.0,0.00014027,2]
[353118569,1739566280211,-1107.54,0.00014027,2]
[353118570,1739566280222,-1293.24,0.00014027,2]
[353118571,1739566280232,-925.37,0.00014027,2]
[353118572,1739566280244,-757.13,0.00014027,2]
[353118573,1739566280255,-500.0,0.00014027,2]
[353118574,1739566280265,-500.0,0.00014027,2]
[353118575,1739566280279,-868.29,0.00014027,2]
[353118576,1739566280290,-500.0,0.00014027,2]
[353118577,1739566280300,-500.0,0.00014027,2]
[353118578,1739566280311,-653.19,0.00014027,2]
[353118579,1739566280321,-534.17,0.00014027,2]
[353118580,1739566280331,-500.0,0.00014027,2]
[353118581,1739566280342,-631.96,0.00014027,2]
[353118582,1739566280353,-500.0,0.00014027,2]
[353118583,1739566280364,-818.28,0.00014027,2]
[353118584,1739566280374,-694.26,0.00014027,2]
[353118585,1739566280384,-500.0,0.00014027,2]
[353118586,1739566280394,-898.94,0.00014027,2]
[353118587,1739566280405,-897.15,0.00014027,2]
[353118588,1739566280416,-500.0,0.00014027,2]
[353118589,1739566280427,-500.0,0.00014027,2]
[353118590,1739566280437,-500.0,0.00014027,2]
[353118591,1739566280448,-621.48,0.00014027,2]
[353118592,1739566280459,-500.0,0.00014027,2]
[353118593,1739566280470,-738.99,0.00014027,2]
[353118594,1739566280481,-500.0,0.00014027,2]
[353118595,1739566280491,-500.0,0.00014027,2]
[353118596,1739566280502,-551.59,0.00014027,2]
[353118597,1739566280512,-1738.29,0.00014027,2]
[353118598,1739566280522,-537.31,0.00014027,2]
[353118599,1739566280533,-500.0,0.00014027,2]
[353118600,1739566280543,-644.46,0.00014027,2]
[353118601,1739566280553,-500.0,0.00014027,2]
[353118602,1739566280567,-681.31,0.00014027,2]
[353118603,1739566280578,-500.0,0.00014027,2]
[353118604,1739566280588,-518.76,0.00014027,2]
[353118605,1739566280599,-500.0,0.00014027,2]
[353118606,1739566280609,-500.0,0.00014027,2]
[353118607,1739566280622,-500.0,0.00014027,2]
[353118608,1739566280632,-1083.31,0.00014027,2]
[353118609,1739566280643,-500.0,0.00014027,2]
[353118610,1739566280654,-502.76,0.00014027,2]
[353118611,1739566280664,-508.01,0.00014027,2]
[353118612,1739566280674,-1023.77,0.00014027,2]
[353118613,1739566280685,-500.0,0.00014027,2]
[353118614,1739566280695,-573.89,0.00014027,2]
[353118615,1739566280706,-500.0,0.00014027,2]
[353118616,1739566280716,-500.0,0.00014027,2]
[353118617,1739566280726,-927.77,0.00014027,2]
[353118618,1739566280736,-534.30383799,0.00014027,2]
[353118619,1739566280747,-616.63,0.00014027,2]
[353118620,1739566280757,-500.0,0.00014027,2]
[353118621,1739566280767,-500.0,0.00014027,2]
[353118622,1739566280778,-500.0,0.00014027,2]
[353118623,1739566280788,-1426.12,0.00014027,2]
[353118624,1739566280799,-1153.11,0.00014027,2]
[353118625,1739566280811,-626.41,0.00014027,2]
[353118626,1739566280822,-500.0,0.00014027,2]
[353118627,1739566280832,-1100.39,0.00014027,2]
[353118628,1739566280842,-583.6,0.00014027,2]
[353118629,1739566280852,-675.34,0.00014027,2]
[353118630,1739566280862,-966.1,0.00014027,2]
[353118631,1739566280996,-500.0,0.00014027,2]
[353118632,1739566281006,-500.0,0.00014027,2]
[353118633,1739566281016,-500.0,0.00014027,2]
[353118634,1739566281026,-500.0,0.00014027,2]
[353118635,1739566281035,-500.0,0.00014027,2]
[353118636,1739566281045,-942.55,0.00014027,2]
[353118637,1739566281054,-1213.1,0.00014027,2]
[353118638,1739566281066,-500.0,0.00014027,2]
[353118639,1739566281075,-863.9,0.00014027,2]
[353118640,1739566281085,-500.0,0.00014027,2]
[353118641,1739566281095,-500.0,0.00014027,2]
[353118642,1739566281105,-500.0,0.00014027,2]
[353118643,1739566281114,-853.01,0.00014027,2]
[353118644,1739566281124,-507.29,0.00014027,2]
[353118645,1739566281133,-500.0,0.00014027,2]
[353118646,1739566281143,-850.74,0.00014027,2]
[353118647,1739566281152,-674.85,0.00014027,2]
[353118648,1739566281162,-1067.49,0.00014027,2]
[353118649,1739566281172,-614.03,0.00014027,2]
[353118650,1739566281182,-953.81,0.00014027,2]
[353118651,1739566281191,-936.1,0.00014027,2]
[353118652,1739566281202,-704.52,0.00014027,2]
[353118653,1739566281213,-151.0,0.00014027,2]
[353118654,1739566281223,-500.0,0.00014027,2]
[353118655,1739566281233,-1852.67,0.00014027,2]
[353118656,1739566281243,-500.0,0.00014027,2]
[353118657,1739566281253,-597.11,0.00014027,2]
[353118658,1739566281262,-2467.3,0.00014027,2]
[353118659,1739566281271,-2316.56,0.00014027,2]
[353118660,1739566281281,-500.0,0.00014027,2]
[353118661,1739566281290,-500.0,0.00014027,2]
[353118662,1739566281300,-842.17,0.00014027,2]
[353118663,1739566281312,-500.0,0.00014027,2]
[353118664,1739566281322,-396.91027126,0.00014027,2]
[353118665,1739566281331,-2018.88,0.00014027,2]
[353118666,1739566281341,-1346.43,0.00014027,2]
[353118667,1739566281350,-931.73,0.00014027,2]
[353118668,1739566281359,-500.0,0.00014027,2]
[353118669,1739566281368,-654.79,0.00014027,2]
[353118670,1739566281377,-592.75,0.00014027,2]
[353118671,1739566281386,-332.54917436,0.00014027,2]
[353118672,1739566281396,-1316.77,0.00014027,2]
[353118673,1739566281406,-500.0,0.00014027,2]
[353118674,1739566281415,-1311.38,0.00014027,2]
[353118675,1739566281426,-1927.46,0.00014027,2]
[353118676,1739566281435,-500.0,0.00014027,2]
[353118677,1739566281445,-1226.1,0.00014027,2]
[353118678,1739566281455,-1497.33,0.00014027,2]
[353118679,1739566281465,-500.0,0.00014027,2]
[353118680,1739566281474,-1983.45,0.00014027,2]
[353118681,1739566281484,-1529.01,0.00014027,2]
[353118682,1739566281494,-2406.51,0.00014027,2]
[353118683,1739566281503,-670.85,0.00014027,2]
[353118684,1739566281513,-503.07,0.00014027,2]
[353118685,1739566281522,-514.11,0.00014027,2]
[353118686,1739566281532,-701.6,0.00014027,2]
[353118687,1739566281542,-1219.04,0.00014027,2]
[353118688,1739566281551,-2433.16,0.00014027,2]
[353118689,1739566281561,-1086.21,0.00014027,2]
[353118690,1739566281570,-1332.76,0.00014027,2]
[353118691,1739566281579,-500.0,0.00014027,2]
[353118692,1739566281589,-500.0,0.00014027,2]
[353118693,1739566281599,-1041.19,0.00014027,2]
[353118694,1739566281609,-500.0,0.00014027,2]
[353118695,1739566281619,-500.0,0.00014027,2]
[353118696,1739566281629,-1357.25,0.00014027,2]
[353118697,1739566281638,-1158.9,0.00014027,2]
[353118698,1739566281647,-1814.98,0.00014027,2]
[353118699,1739566281657,-3315.84,0.00014027,2]
[353118700,1739566281667,-500.0,0.00014027,2]
[353118701,1739566281676,-1092.63,0.00014027,2]
[353118702,1739566281686,-1307.26,0.00014027,2]
[353118703,1739566281696,-1239.09,0.00014027,2]
[353118704,1739566281705,-1164.5,0.00014027,2]
[353118705,1739566281715,-1608.88,0.00014027,2]
[353118706,1739566281724,-500.0,0.00014027,2]
[353118707,1739566281733,-500.0,0.00014027,2]
[353118708,1739566281743,-1805.89,0.00014027,2]
[353118709,1739566281752,-2219.87,0.00014027,2]
[353118710,1739566281761,-1235.55,0.00014027,2]
[353118711,1739566281771,-604.24,0.00014027,2]
[353118712,1739566281780,-1082.39,0.00014027,2]
[353118713,1739566281791,-2116.85,0.00014027,2]
[353118714,1739566281800,-500.0,0.00014027,2]
[353118715,1739566281811,-500.0,0.00014027,2]
[353118716,1739566281820,-661.33,0.00014027,2]
[353118717,1739566281829,-2112.18,0.00014027,2]
[353118718,1739566281839,-500.0,0.00014027,2]
[353118719,1739566281854,-500.0,0.00014027,2]
[353118720,1739566281863,-1558.85,0.00014027,2]
[353118721,1739566281873,-1872.0,0.00014027,2]
[353118722,1739566281883,-1157.73,0.00014027,2]
[353118723,1739566281893,-500.0,0.00014027,2]
[353118724,1739566281903,-699.76,0.00014027,2]
[353118725,1739566281913,-2970.66,0.00014027,2]
[353118726,1739566281924,-500.0,0.00014027,2]
[353118727,1739566281935,-508.25,0.00014027,2]
[353118728,1739566281944,-500.0,0.00014027,2]
[353118729,1739566281955,-586.78,0.00014027,2]
[353118730,1739566281964,-500.0,0.00014027,2]
[353118731,1739566281973,-929.92,0.00014027,2]
[353118732,1739566281983,-500.0,0.00014027,2]
[353118733,1739566281992,-635.89,0.00014027,2]
[353118734,1739566282002,-2913.77,0.00014027,2]
[353118735,1739566282012,-500.0,0.00014027,2]
[353118736,1739566282022,-500.0,0.00014027,2]
[353118737,1739566282033,-4186.79,0.00014027,2]
[353118738,1739566282044,-902.65,0.00014027,2]
[353118739,1739566282054,-1399.17,0.00014027,2]
[353118740,1739566282066,-2196.62,0.00014027,2]
[353118741,1739566282075,-500.0,0.00014027,2]
[353118742,1739566282085,-500.0,0.00014027,2]
[353118743,1739566282094,-2628.96,0.00014027,2]
[353118744,1739566282104,-1928.84,0.00014027,2]
[353118745,1739566282113,-1158.56,0.00014027,2]
[353118746,1739566282122,-599.23121729,0.00014027,2]
[353118747,1739566282132,-1153.76,0.00014027,2]
[353118748,1739566282142,-1479.96,0.00014027,2]
[353118749,1739566282151,-739.42,0.00014027,2]
[353118750,1739566282162,-500.0,0.00014027,2]
[353118751,1739566282171,-1028.48,0.00014027,2]
[353118752,1739566282181,-1597.62,0.00014027,2]
[353118753,1739566282195,-500.0,0.00014027,2]
[353118754,1739566282204,-1906.43,0.00014027,2]
[353118755,1739566282214,-3241.0,0.00014027,2]
[353118756,1739566282223,-151.0,0.00014027,2]
[353118757,1739566282234,-816.33,0.00014027,2]
[353118758,1739566282243,-500.0,0.00014027,2]
[353118759,1739566282253,-849.22,0.00014027,2]
[353118760,1739566282262,-1191.81,0.00014027,2]
[353118761,1739566282273,-1332.32,0.00014027,2]
[353118762,1739566282282,-939.58,0.00014027,2]
[353118763,1739566282291,-527.13,0.00014027,2]
[353118764,1739566282301,-500.0,0.00014027,2]
[353118765,1739566282311,-1257.55,0.00014027,2]
[353118766,1739566282320,-2807.42,0.00014027,2]
[353118767,1739566282330,-1704.06,0.00014027,2]
[353118768,1739566282340,-500.0,0.00014027,2]
[353118769,1739566282350,-2998.46,0.00014027,2]
[353118770,1739566282364,-556.02,0.00014027,2]
[353118771,1739566282374,-500.0,0.00014027,2]
[353118772,1739566282383,-2289.6,0.00014027,2]
[353118773,1739566282393,-712.61,0.00014027,2]
[353118774,1739566282403,-1979.01,0.00014027,2]
[353118775,1739566282413,-1375.26,0.00014027,2]
[353118776,1739566282423,-2871.06,0.00014027,2]
[353118777,1739566282433,-3197.44,0.00014027,2]
[353118778,1739566282442,-1256.84,0.00014027,2]
[353118779,1739566282451,-500.0,0.00014027,2]
[353118780,1739566282461,-615.54,0.00014027,2]
[353118781,1739566282471,-500.0,0.00014027,2]
[353118782,1739566282481,-808.016187,0.00014027,2]
[353118783,1739566282491,-500.0,0.00014027,2]
[353118784,1739566282501,-500.0,0.00014027,2]
[353118785,1739566282511,-808.016187,0.00014027,2]
[353118786,1739566282522,-500.0,0.00014027,2]
[353118787,1739566282532,-1995.79,0.00014027,2]
[353118788,1739566282541,-1359.06,0.00014027,2]
[353118789,1739566282551,-2330.96,0.00014027,2]
[353118790,1739566282561,-500.0,0.00014027,2]
[353118791,1739566282570,-10858.08,0.00014027,2]
[353118792,1739566282580,-907.98,0.00014027,2]
[353118793,1739566282589,-500.0,0.00014027,2]
[353118794,1739566282599,-500.0,0.00014027,2]
[353118795,1739566282609,-729.91,0.00014027,2]
[353118796,1739566282619,-531.25,0.00014027,2]
[353118797,1739566282629,-500.0,0.00014027,2]
[353118798,1739566282639,-524.39,0.00014027,2]
[353118799,1739566282648,-1278.12,0.00014027,2]
[353118800,1739566282658,-534.03,0.00014027,2]
[353118801,1739566282668,-925.72,0.00014027,2]
[353118802,1739566282678,-2822.56,0.00014027,2]
[353118803,1739566282688,-1717.5,0.00014027,2]
[353118804,1739566282698,-2435.86,0.00014027,2]
[353118805,1739566282708,-500.0,0.00014027,2]
[353118806,1739566282718,-500.0,0.00014027,2]
[353118807,1739566282728,-500.0,0.00014027,2]
[353118808,1739566282738,-1647.15,0.00014027,2]
[353118809,1739566282748,-760.05,0.00014027,2]
[353118810,1739566282759,-2378.56,0.00014027,2]
[353118811,1739566282768,-500.0,0.00014027,2]
[353118812,1739566282778,-2543.87,0.00014027,2]
[353118813,1739566282787,-1674.92,0.00014027,2]
[353118814,1739566282797,-2943.72,0.00014027,2]
[353118815,1739566282806,-605.91,0.00014027,2]
[353118816,1739566282817,-655.62,0.00014027,2]
[353118817,1739566282828,-362.22197121,0.00014027,2]
[353118818,1739566282837,-500.0,0.00014027,2]
[353118819,1739566282847,-500.0,0.00014027,2]
[353118820,1739566282857,-500.0,0.00014027,2]
[353118821,1739566282866,-5616.87,0.00014027,2]
[353118822,1739566282876,-3193.42,0.00014027,2]
[353118823,1739566282886,-1726.03,0.00014027,2]
[353118824,1739566282896,-2562.68,0.00014027,2]
[353118825,1739566282906,-2524.45,0.00014027,2]
[353118826,1739566282916,-3694.54,0.00014027,2]
[353118827,1739566282925,-500.0,0.00014027,2]
[353118828,1739566282935,-500.0,0.00014027,2]
[353118829,1739566282946,-2033.18,0.00014027,2]
[353118830,1739566282956,-550.44,0.00014027,2]
[353118831,1739566282965,-500.0,0.00014027,2]
[353118832,1739566282975,-2191.43,0.00014027,2]
[353118833,1739566282986,-645.64,0.00014027,2]
[353118834,1739566282996,-500.0,0.00014027,2]